bitfinex-derivatives/quotes_SOLF0:USTF0_20251126
["timestamp","ask_amount","ask_price","bid_price","bid_amount"]
[1764178465170,1.1,139.13,139.05,3.12]
[1764178465469,1.1,139.12,139.01,103.8673]
[1764178465659,1.1,139.11,139.02,3.12]
[1764178465860,7.62312875,139.08,139.05,0.05041764]
[1764178466062,1.1,139.07,139.05,0.05041764]
[1764178466257,0.04962875,139.08,139.05,0.05041764]
[1764178466462,0.04962875,139.08,139.05,3.17041764]
[1764178467058,0.04962875,139.08,139.06,3.12]
[1764178467668,0.04962875,139.08,139.05,6.52491764]
[1764178467964,0.04962875,139.08,139.05,9.64491764]
[1764178468165,0.04962875,139.08,139.06,9.5941]
[1764178468471,0.04962875,139.08,139.05,3.17041764]
[1764178469362,0.04962875,139.08,139.06,6.474]
[1764178469963,0.04962875,139.08,139.06,9.594]
[1764178470164,6.4708,139.14,139.08,6.473]
[1764178471066,6.4708,139.14,139.03,178.20038095]
[1764178471067,1.1,139.1,139.0,3.12]
[1764178471668,1.05,139.09,139.0,9.5967]
[1764178471968,1.05,139.09,139.0,3.12]
[1764178472272,0.04696959,139.06,139.03,0.04591181]
[1764178473165,1.1,139.14,139.07,3.12]
[1764178473576,1.1,139.14,139.07,9.5938]
[1764178473766,1.1,139.14,139.07,103.8207]
[1764178474068,1.1,139.14,139.09,0.05526569]
[1764178474861,1.1,139.13,139.09,0.05526569]
[1764178475462,1.1,139.17,139.09,9.64786569]
[1764178475664,1.1,139.17,139.12,0.0504886]
[1764178477272,25.6,139.19,139.12,9.6415886]
[1764178477468,26.7,139.19,139.12,0.0504886]
[1764178478364,26.7,139.19,139.12,6.5218886]
[1764178478569,26.7,139.19,139.12,0.0504886]
[1764178479480,1.1,139.18,139.12,0.0504886]
[1764178479774,25.6,139.19,139.12,0.0504886]
[1764178479964,26.7,139.19,139.12,3.1704886]
[1764178480870,26.7,139.19,139.13,6.4707]
[1764178482277,1.1,139.17,139.12,0.0504886]
[1764178482571,1.1,139.17,139.12,3.1604886]
[1764178483471,0.21842,139.2,139.15,3.11]
[1764178483667,0.21842,139.2,139.17,3.11]
[1764178483868,0.21842,139.2,139.18,3.11]
[1764178484273,0.21842,139.2,139.16,3.162451]
[1764178484470,0.21842,139.2,139.16,103.801251]
[1764178484673,0.21842,139.2,139.17,3.11]
[1764178484976,25.56,139.28,139.18,100.6241]
[1764178485274,1.32,139.27,139.22,0.04631834]
[1764178485480,1.32,139.26,139.22,0.04631834]
[1764178485972,1.32,139.25,139.22,0.04631834]
[1764178486366,1.32,139.29,139.22,0.04631834]
[1764178486567,1.32,139.32,139.24,3.1599741]
[1764178486773,1.32,139.32,139.24,0.0499741]
[1764178486973,1.32,139.32,139.24,3.1599741]
[1764178487175,1.32,139.32,139.25,6.60421368]
[1764178487379,1.32,139.32,139.26,6.60421368]
[1764178487579,1.32,139.32,139.27,6.64331353]
[1764178487769,1.32,139.32,139.28,6.59441649]
[1764178487973,25.56,139.34,139.27,3.15889704]
[1764178488279,1.32,139.33,139.28,6.59232569]
[1764178488464,25.56,139.34,139.27,3.15889704]
[1764178488667,1.32,139.36,139.28,6.58231706]
[1764178488872,25.6,139.37,139.29,6.58231706]
[1764178488873,1.32,139.32,139.29,6.58231706]
[1764178489180,1.32,139.32,139.29,0.05048397]
[1764178489571,107.36357152,139.39,139.3,3.11]
[1764178489572,1.32,139.39,139.3,3.11]
[1764178489883,100.4777,139.39,139.31,6.57016199]
[1764178490072,1.32,139.38,139.33,0.04847261]
[1764178490475,25.64,139.39,139.33,3.15847261]
[1764178490676,1.32,139.38,139.34,6.55944608]
[1764178490973,106.9075,139.42,139.33,3.15847261]
[1764178490974,101.7695,139.42,139.33,3.15847261]
[1764178491176,1.32,139.4,139.29,3.11]
[1764178491392,1.32,139.4,139.34,0.05158181]
[1764178491682,1.32,139.4,139.35,6.54791177]
[1764178491884,1.32,139.4,139.34,0.05158181]
[1764178492480,102.32342411,139.43,139.34,3.16158181]
[1764178492481,1.87232411,139.43,139.34,3.16158181]
[1764178492678,1.32,139.42,139.35,6.53818504]
[1764178492884,1.32,139.42,139.37,0.05413751]
[1764178493087,3.19232411,139.43,139.37,0.05413751]
[1764178493279,1.32,139.42,139.37,0.05413751]
[1764178493881,1.32,139.41,139.37,0.05413751]
[1764178494074,1.32,139.4,139.37,0.05413751]
[1764178494682,101.8053,139.38,139.29,3.11]
[1764178494892,101.8053,139.38,139.3,6.52198524]
[1764178495091,101.8123,139.37,139.31,6.52198524]
[1764178495295,1.32,139.35,139.24,3.11]
[1764178495481,1.32,139.31,139.25,6.52077233]
[1764178495680,1.32,139.31,139.21,3.11]
[1764178495985,0.05145217,139.27,139.25,0.05509678]
[1764178496180,0.05145217,139.27,139.26,6.52392285]
[1764178497090,1.32,139.35,139.26,9.63392285]
[1764178497284,1.32,139.35,139.27,6.51842175]
[1764178497586,1.32,139.35,139.28,6.51842175]
[1764178497781,1.32,139.34,139.26,3.11]
[1764178497981,1.32,139.34,139.27,6.51715078]
[1764178498186,100.5191,139.33,139.22,3.11]
[1764178498378,1.26,139.28,139.23,6.51814237]
[1764178498577,1.26,139.28,139.18,3.11]
[1764178498791,1.26,139.28,139.2,3.11]
[1764178498986,101.8172,139.28,139.21,6.5205391]
[1764178499285,101.8172,139.28,139.22,6.5205391]
[1764178499473,0.04887752,139.25,139.23,0.05414237]
[1764178500186,297.26,139.34,139.23,3.16414237]
[1764178500486,1.26,139.38,139.28,3.11]
[1764178500681,88.03232411,139.43,139.3,3.11]
[1764178500886,1.26,139.41,139.32,3.11]
[1764178501385,1.87232411,139.43,139.35,3.11]
[1764178501682,0.02368745,139.37,139.36,9.61591297]
[1764178501884,0.02368745,139.37,139.29,100.5428]
[1764178501885,1.26,139.41,139.32,3.11]
[1764178502082,1.26,139.41,139.24,25.64]
[1764178502083,101.7597,139.36,139.34,0.05162714]
[1764178502284,101.7776,139.33,139.22,3.11]
[1764178502483,1.26,139.32,139.31,0.0534663]
[1764178502683,101.7876,139.32,139.23,3.11]
[1764178502883,1.28368745,139.29,139.26,0.04898941]
[1764178503279,0.02368745,139.29,139.26,0.04898941]
[1764178503877,0.02368745,139.29,139.26,3.15898941]
[1764178504494,25.64,139.35,139.27,6.50985068]
[1764178504680,25.64,139.35,139.28,6.50985068]
[1764178504992,26.9,139.37,139.29,6.50985068]
[1764178505293,1.26,139.34,139.26,3.11]
[1764178505488,108.2322,139.34,139.27,6.51029253]
[1764178505791,7.7217,139.34,139.29,0.05228377]
[1764178506397,1.26,139.39,139.29,3.05228377]
[1764178506584,1.26,139.37,139.3,6.51156495]
[1764178506788,1.26,139.37,139.32,0.04968588]
[1764178507083,1.26,139.33,139.32,0.04968588]
[1764178507293,1.21,139.39,139.28,103.5533]
[1764178507498,25.64,139.42,139.31,3.0]
[1764178507794,127.3021,139.42,139.32,6.51391722]
[1764178507996,33.3079,139.42,139.33,6.51391722]
[1764178508196,133.7619,139.42,139.34,6.51391722]
[1764178508391,0.04968588,139.38,139.35,0.04842507]
[1764178510288,0.04968588,139.38,139.35,3.04842507]
[1764178511396,0.04968588,139.38,139.36,9.48190413]
[1764178511696,0.04968588,139.38,139.35,3.02842507]
[1764178511893,0.04968588,139.38,139.36,6.50220201]
[1764178512089,0.04968588,139.38,139.35,0.04842507]
[1764178512490,101.74468588,139.38,139.35,0.04842507]
[1764178512688,1.21,139.37,139.26,2.98]
[1764178512894,6.4611,139.35,139.27,15.95258559]
[1764178513089,1.21,139.37,139.28,9.48828559]
[1764178513398,1.21,139.37,139.29,6.50828559]
[1764178513585,6.4612,139.35,139.3,6.50828559]
[1764178513790,0.05454031,139.34,139.31,6.56159037]
[1764178513996,0.05454031,139.34,139.31,0.05330478]
[1764178514298,0.05454031,139.34,139.31,3.03330478]
[1764178514498,0.05454031,139.34,139.33,2.98]
[1764178514694,423.95902411,139.43,139.35,2.98]
[1764178514695,1.87232411,139.43,139.35,2.98]
[1764178514995,1.87232411,139.43,139.36,6.51396211]
[1764178515198,1.87232411,139.43,139.35,2.98]
[1764178515199,1.26,139.42,139.37,6.51396211]
[1764178515500,1.26,139.42,139.35,2.98]
[1764178515792,1.26,139.42,139.36,6.50996058]
[1764178515793,101.7317,139.4,139.36,6.50996058]
[1764178515989,102.32112411,139.43,139.36,0.05242733]
[1764178515990,0.04357064,139.38,139.36,0.05242733]
[1764178516189,1.26,139.4,139.37,6.51460829]
[1764178516399,7.76327064,139.38,139.36,0.05242733]
[1764178516997,6.4604,139.36,139.27,2.98]
[1764178517193,101.7521,139.37,139.27,2.98]
[1764178517394,100.4983,139.36,139.27,2.98]
[1764178517898,1.26,139.39,139.28,2.98]
[1764178518198,0.05217279,139.32,139.29,3.02619337]
[1764178518396,1.26,139.39,139.29,2.98]
[1764178518598,0.04990869,139.32,139.29,3.03120861]
[1764178518796,100.4865,139.38,139.29,2.98]
[1764178519099,0.04639824,139.32,139.29,3.02662843]
[1764178519297,100.4865,139.38,139.29,2.98]
[1764178519600,1.31314539,139.35,139.32,0.05393943]
[1764178519797,101.7734,139.34,139.25,2.98]
[1764178520005,6.4634,139.3,139.25,2.98]
[1764178520506,101.7783,139.33,139.25,2.98]
[1764178520692,1.26,139.33,139.25,2.98]
[1764178520898,0.04976335,139.3,139.28,0.0528318]
[1764178521404,0.04976335,139.3,139.28,3.0328318]
[1764178521600,0.04976335,139.3,139.28,9.4967318]
[1764178521804,0.04976335,139.3,139.28,3.0328318]
[1764178522501,25.62,139.37,139.28,3.0328318]
[1764178522701,6.4606,139.36,139.28,2.98]
[1764178522896,101.8074,139.36,139.28,2.98]
[1764178523092,101.8074,139.36,139.2,113.5444]
[1764178523093,1.31,139.29,139.2,2.98]
[1764178523402,26.95,139.31,139.23,0.04695662]
[1764178523602,127.4856,139.31,139.22,2.98]
[1764178523802,0.05067234,139.28,139.25,0.05023272]
[1764178524100,1.36067234,139.28,139.25,0.05023272]
[1764178524599,0.05067234,139.28,139.25,3.03023272]
[1764178524798,1.31,139.36,139.26,2.98]
[1764178525898,0.04910457,139.32,139.3,0.05243599]
[1764178526701,0.04910457,139.32,139.3,3.03243599]
[1764178527104,0.04910457,139.32,139.3,9.49543599]
[1764178527300,0.04910457,139.32,139.31,2.98]
[1764178527505,25.62,139.38,139.31,2.98]
[1764178527695,7.7686,139.4,139.32,6.4621]
[1764178527895,100.4747,139.39,139.31,2.98]
[1764178528096,1.31,139.39,139.31,2.98]
[1764178528700,101.7919,139.38,139.34,0.05092272]
[1764178528897,7.7706,139.36,139.34,0.05092272]
[1764178530205,7.7698,139.38,139.34,0.05092272]
[1764178530413,1.31,139.37,139.34,0.05092272]
[1764178531607,108.35678363,139.41,139.34,0.05092272]
[1764178531810,25.6,139.4,139.34,0.05092272]
[1764178532011,26.91,139.4,139.34,0.05092272]
[1764178532412,127.3802,139.4,139.34,0.05092272]
[1764178532799,6.4602,139.37,139.34,0.05092272]
[1764178533614,7.7702,139.37,139.34,0.05092272]
[1764178533813,8.45430774,139.43,139.34,3.03092272]
[1764178534107,1.87232411,139.43,139.37,0.04921425]
[1764178534521,1.87232411,139.43,139.37,6.50891425]
[1764178534714,1.87232411,139.43,139.38,2.98]
[1764178535009,1.87232411,139.43,139.38,9.4393]
[1764178535209,1.87232411,139.43,139.37,3.02921425]
[1764178536309,1.87232411,139.43,139.39,2.98]
[1764178536905,1.87232411,139.43,139.38,6.4592]
[1764178536906,1.87232411,139.43,139.4,2.98]
[1764178537105,1.87232411,139.43,139.4,3.03107401]
[1764178537308,1.31,139.5,139.4,3.03107401]
[1764178537507,101.708,139.5,139.44,0.0537808]
[1764178538108,7.7641,139.5,139.44,0.0537808]
[1764178538313,101.7084,139.5,139.44,0.0537808]
[1764178538513,2.92,139.48,139.44,0.0537808]
[1764178538714,6.4555,139.47,139.44,0.0537808]
[1764178539709,6.4561,139.46,139.44,0.0537808]
[1764178539915,2.92,139.45,139.37,2.98]
[1764178540109,6.4569,139.44,139.37,2.98]
[1764178540318,6.4569,139.44,139.33,2.98]
[1764178540319,103.3677,139.43,139.33,2.98]
[1764178540521,100.46,139.41,139.33,2.98]
[1764178540817,2.92,139.36,139.29,2.98]
[1764178541016,0.05152062,139.34,139.31,0.04971662]
[1764178541318,2.97152062,139.34,139.31,0.04971662]
[1764178542312,103.48542062,139.34,139.31,0.04971662]
[1764178542512,9.333,139.31,139.21,2.89]
[1764178542720,34.873,139.31,139.21,2.89]
[1764178542921,28.41,139.31,139.22,2.89]
[1764178543310,103.4147,139.3,139.22,2.89]
[1764178543514,0.05278869,139.27,139.25,0.04844422]
[1764178543718,0.05278869,139.27,139.25,2.93844422]
[1764178544110,2.93,139.37,139.28,9.3541]
[1764178544411,2.93,139.36,139.24,2.89]
[1764178544612,6.4617,139.34,139.24,9.356]
[1764178544819,25.56,139.33,139.24,9.356]
[1764178545024,0.05110587,139.3,139.27,0.05195232]
[1764178545620,0.05110587,139.3,139.27,2.94195232]
[1764178546625,0.05110587,139.3,139.29,2.89]
[1764178546926,0.05110587,139.3,139.28,9.3539]
[1764178547115,0.05110587,139.3,139.29,2.89]
[1764178547418,2.93,139.37,139.29,2.89]
[1764178548013,2.93,139.37,139.29,9.3534]
[1764178548623,2.93,139.37,139.32,0.0537463]
[1764178549825,2.93,139.41,139.33,2.89]
[1764178550125,2.93,139.41,139.36,2.93935297]
[1764178550718,2.93,139.41,139.36,0.04935297]
[1764178554320,25.54,139.43,139.36,9.39955297]
[1764178554530,2.93,139.45,139.36,9.39955297]
[1764178554724,2.93,139.45,139.39,0.05471325]
[1764178555529,9.3865,139.45,139.39,0.05471325]
[1764178555736,2.93,139.44,139.39,0.05471325]
[1764178556238,2.93,139.42,139.39,0.05471325]
[1764178556734,34.8845,139.49,139.4,6.4584]
[1764178556933,28.43,139.49,139.43,0.04603052]
[1764178557136,2.93,139.48,139.43,0.04603052]
[1764178558838,2.93,139.47,139.43,0.04603052]
[1764178560546,25.48,139.49,139.43,0.04603052]
[1764178560940,2.93,139.5,139.43,0.04603052]
[1764178561250,2.93,139.48,139.45,0.05259561]
[1764178562444,2.93,139.42,139.35,2.89]
[1764178562846,2.93,139.42,139.3,112.4914902]
[1764178562847,6.4587,139.4,139.33,6.4615]
[1764178563152,28.39,139.47,139.37,2.89]
[1764178563341,2.93,139.47,139.38,2.89]
[1764178563650,2.93,139.47,139.41,0.05337035]
[1764178563651,0.05128544,139.43,139.41,0.05337035]
[1764178564541,0.05128544,139.43,139.41,2.94337035]
[1764178564743,2.93,139.51,139.42,2.89]
[1764178565050,2.93,139.5,139.42,2.89]
[1764178565347,9.3841,139.5,139.42,2.89]
[1764178565552,2.93,139.5,139.42,2.89]
[1764178565851,2.93,139.5,139.45,0.05372298]
[1764178566150,6.4546,139.49,139.45,0.05372298]
[1764178566451,3.02,139.48,139.45,0.05372298]
[1764178566848,9.4756,139.47,139.45,0.05372298]
[1764178567150,3.02,139.46,139.38,3.1]
[1764178567347,103.4469,139.46,139.38,3.1]
[1764178567553,103.4204,139.41,139.34,3.1]
[1764178567752,2.96,139.41,139.34,3.1]
[1764178567955,100.4123,139.48,139.34,3.1]
[1764178568250,0.04778244,139.42,139.4,0.05197237]
[1764178568447,0.05084186,139.42,139.34,3.1]
[1764178569454,0.05084186,139.42,139.37,0.04960987]
[1764178570147,100.4758,139.39,139.27,3.1]
[1764178570449,6.4601,139.37,139.3,6.4629]
[1764178570648,100.4906,139.37,139.28,3.1]
[1764178570849,100.5044,139.35,139.24,3.1]
[1764178571051,6.462,139.33,139.26,6.4649]
[1764178571349,100.4818,139.38,139.26,6.4649]
[1764178571350,0.05233996,139.31,139.28,0.04784925]
[1764178571551,0.05428709,139.31,139.28,3.03656026]
[1764178571739,0.05428709,139.31,139.28,0.04656026]
[1764178572955,0.05428709,139.31,139.28,3.03656026]
[1764178573249,0.05428709,139.31,139.28,0.04656026]
[1764178573454,6.51728709,139.31,139.28,0.04656026]
[1764178573651,0.05428709,139.31,139.28,0.04656026]
[1764178574155,0.05428709,139.31,139.29,2.99]
[1764178574358,0.05428709,139.31,139.29,9.4535]
[1764178574557,0.05428709,139.31,139.3,2.99]
[1764178575448,18.53827383,139.44,139.3,2.99]
[1764178575449,100.4331,139.45,139.32,2.99]
[1764178575643,125.9311,139.43,139.32,2.99]
[1764178575841,6.4574,139.43,139.36,6.4602]
[1764178576049,25.48,139.44,139.34,2.99]
[1764178576445,0.04773426,139.4,139.38,0.0487177]
[1764178577256,6.50643426,139.4,139.38,0.0487177]
[1764178577455,0.04773426,139.4,139.32,103.5105]
[1764178577648,25.48,139.43,139.34,2.99]
[1764178577951,100.3839,139.52,139.39,2.99]
[1764178578148,25.48,139.51,139.39,2.99]
[1764178578343,106.96038363,139.53,139.4,103.453]
[1764178578548,0.05283973,139.46,139.44,3.03655151]
[1764178578748,0.04841366,139.46,139.44,3.03595113]
[1764178579351,0.04841366,139.46,139.44,0.04595113]
[1764178579555,0.04841366,139.46,139.36,2.99]
[1764178579755,100.4207,139.47,139.36,2.99]
[1764178579948,100.4242,139.46,139.36,2.99]
[1764178580657,0.05192073,139.42,139.4,0.05001228]
[1764178580953,106.98948363,139.57,139.46,2.99]
[1764178581148,6.4514,139.56,139.46,9.4455]
[1764178581350,0.06,139.55,139.46,2.99]
[1764178581956,0.06,139.51,139.49,0.05313473]
[1764178582152,125.9709,139.51,139.42,2.99]
[1764178582358,6.4542,139.5,139.42,2.99]
[1764178582563,25.58,139.51,139.42,2.99]
[1764178582564,125.9716,139.51,139.42,2.99]
[1764178582860,25.58,139.51,139.42,2.99]
[1764178583162,0.04693858,139.48,139.45,0.04593975]
[1764178584458,0.06,139.55,139.45,3.03593975]
[1764178584760,25.56,139.55,139.45,2.99]
[1764178584950,0.1,139.54,139.45,2.99]
[1764178585149,3.07182865,139.6,139.54,2.99]
[1764178585355,3.07182865,139.6,139.5,2.99]
[1764178585552,0.05017049,139.56,139.54,0.0461087]
[1764178586157,0.05017049,139.56,139.46,125.9431]
[1764178586158,100.3591,139.55,139.45,2.99]
[1764178586354,3.07182865,139.6,139.46,100.4196]
[1764178586355,3.17182865,139.6,139.46,100.4196]
[1764178586557,3.07182865,139.6,139.54,2.99]
[1764178586762,3.07182865,139.6,139.55,2.99]
[1764178587360,0.05035917,139.59,139.56,3.04434574]
[1764178587759,0.05035917,139.59,139.56,0.05434574]
[1764178587963,0.15035917,139.59,139.56,0.05434574]
[1764178588154,0.05035917,139.59,139.56,0.05434574]
[1764178588355,0.05035917,139.59,139.56,3.04434574]
[1764178588553,0.1,139.67,139.57,2.99]
[1764178589159,6.4468,139.66,139.58,64.99]
[1764178589663,6.4468,139.66,139.61,0.05523732]
[1764178589664,0.05162608,139.63,139.61,0.05523732]
[1764178590160,0.05162608,139.63,139.61,3.04523732]
[1764178590352,25.54,139.69,139.62,2.99]
[1764178590549,9.3744,139.71,139.62,2.99]
[1764178590750,6.4444,139.71,139.62,2.99]
[1764178591351,0.0549053,139.68,139.65,0.05211243]
[1764178592149,100.284,139.66,139.58,2.99]
[1764178592350,1.84648574,139.72,139.58,2.99]
[1764178592351,125.7819,139.69,139.58,2.99]
[1764178592859,100.2711,139.68,139.58,2.99]
[1764178593156,0.04590056,139.64,139.62,0.05401888]
[1764178593856,100.2328,139.73,139.62,3.04401888]
[1764178593857,2.93,139.7,139.62,3.04401888]
[1764178594057,2.93,139.7,139.62,2.99]
[1764178594252,103.1887,139.69,139.59,2.99]
[1764178594461,1.84648574,139.72,139.62,2.99]
[1764178594664,1.84648574,139.72,139.65,2.99]
[1764178595052,0.04897163,139.7,139.67,0.05096616]
[1764178596960,2.97897163,139.7,139.67,0.05096616]
[1764178597470,0.04897163,139.7,139.67,0.05096616]
[1764178597667,2.97897163,139.7,139.67,0.05096616]
[1764178597967,0.04897163,139.7,139.67,0.05096616]
[1764178598766,2.97897163,139.7,139.67,0.05096616]
[1764178598962,9.3754,139.69,139.67,0.05096616]
[1764178599164,2.93,139.68,139.59,2.99]
[1764178599367,100.2735,139.67,139.59,2.99]
[1764178599562,25.54,139.67,139.59,2.99]
[1764178600373,0.05389064,139.64,139.62,0.05380712]
[1764178600761,100.3007,139.63,139.55,2.99]
[1764178601064,125.8407,139.63,139.55,2.99]
[1764178601770,9.45789351,139.6,139.58,0.05186207]
[1764178601957,3.00738336,139.6,139.58,0.05074653]
[1764178602357,103.2998,139.58,139.51,2.96]
[1764178602569,25.54,139.57,139.48,64.96]
[1764178602771,25.54,139.57,139.49,2.96]
[1764178602973,6.4512,139.56,139.49,2.96]
[1764178603375,25.54,139.58,139.51,2.96]
[1764178603678,0.05021787,139.54,139.51,3.00515194]
[1764178603860,3.01021787,139.54,139.51,0.04515194]
[1764178604174,25.54,139.53,139.46,2.96]
[1764178604375,31.9926,139.53,139.46,2.96]
[1764178605069,0.04901643,139.51,139.48,3.01460194]
[1764178605777,0.04901643,139.51,139.48,0.05460194]
[1764178606170,2.96,139.5,139.48,0.05460194]
[1764178606371,0.04901643,139.51,139.48,0.05460194]
[1764178606570,0.04901643,139.51,139.48,3.01460194]
[1764178607271,0.04901643,139.51,139.48,0.05460194]
[1764178607472,0.04901643,139.51,139.48,3.01460194]
[1764178607869,2.96,139.62,139.48,3.01460194]
[1764178608070,2.96,139.67,139.55,103.3106]
[1764178608376,2.96,139.67,139.56,2.96]
[1764178608377,28.52,139.67,139.56,2.96]
[1764178608676,2.96,139.66,139.56,9.4107]
[1764178608972,0.05481015,139.62,139.6,0.04927711]
[1764178610481,2.96,139.61,139.6,0.04927711]
[1764178610677,2.96,139.61,139.52,2.96]
[1764178610878,2.96,139.61,139.54,6.4515]
[1764178611076,2.96,139.61,139.53,2.96]
[1764178611577,0.04635806,139.58,139.56,0.05332301]
[1764178611967,3.00635806,139.58,139.56,0.05332301]
[1764178612166,3.00635806,139.58,139.49,2.96]
[1764178612478,9.4102,139.58,139.49,9.4139]
[1764178612677,2.96,139.58,139.49,2.96]
[1764178612978,28.5,139.58,139.49,2.96]
[1764178613284,3.0084006,139.55,139.52,0.04689783]
[1764178613776,9.4600006,139.55,139.52,0.04689783]
[1764178613977,2.96,139.54,139.52,0.04689783]
[1764178614771,3.0084006,139.55,139.52,0.04689783]
[1764178615368,3.0084006,139.55,139.52,3.00689783]
[1764178615369,0.0484006,139.55,139.52,3.00689783]
[1764178615576,2.96,139.65,139.54,2.96]
[1764178615778,2.96,139.65,139.55,2.96]
[1764178615976,2.96,139.65,139.56,2.96]
[1764178616168,2.96,139.65,139.54,2.96]
[1764178616365,9.407,139.65,139.56,6.4506]
[1764178616576,9.407,139.65,139.59,0.05275107]
[1764178616577,0.05297983,139.62,139.59,0.05275107]
[1764178619482,0.05297983,139.62,139.59,3.01275107]
[1764178620476,2.96,139.71,139.61,2.96]
[1764178620876,2.96,139.71,139.62,2.96]
[1764178621371,6.4451,139.69,139.62,2.96]
[1764178621573,0.048098,139.68,139.65,0.04932438]
[1764178621981,6.493598,139.68,139.65,0.04932438]
[1764178622587,0.048098,139.68,139.65,3.00932438]
[1764178623780,1.84648574,139.72,139.66,2.96]
[1764178624582,1.84648574,139.72,139.65,0.04932438]
[1764178624583,4.80648574,139.72,139.65,0.04932438]
[1764178624982,0.05171978,139.7,139.65,3.00932438]
[1764178626290,0.05171978,139.7,139.67,2.96]
[1764178626687,0.05171978,139.7,139.65,3.00932438]
[1764178626883,1.14791208,139.72,139.69,2.96]
[1764178628292,1.1943979,139.72,139.69,3.00557388]
[1764178630990,1.1943979,139.72,139.69,0.04557388]
[1764178631393,1.1943979,139.72,139.69,3.12557388]
[1764178631585,1.1943979,139.72,139.69,0.04557388]
[1764178631784,2.99,139.71,139.69,0.04557388]
[1764178632086,6.447,139.65,139.57,3.08]
[1764178632286,103.2715,139.66,139.57,3.08]
[1764178632588,100.3055,139.62,139.52,3.08]
[1764178632792,2.99,139.61,139.52,3.08]
[1764178633087,2.99,139.57,139.56,0.04574187]
[1764178633292,0.04917813,139.58,139.49,3.08]
[1764178633500,28.49,139.6,139.51,0.04531261]
[1764178633692,0.0515827,139.55,139.51,9.5329]
[1764178633886,0.0515827,139.55,139.54,0.05119921]
[1764178635195,0.0515827,139.55,139.54,3.13119921]
[1764178636095,2.99,139.65,139.54,3.13119921]
[1764178636396,2.99,139.64,139.55,103.4313]
[1764178636688,2.99,139.64,139.5,100.389]
[1764178636892,2.99,139.64,139.49,62.0]
[1764178636893,2.99,139.61,139.49,62.0]
[1764178637095,2.99,139.61,139.47,3.08]
[1764178637287,3.04018422,139.56,139.54,0.04984761]
[1764178637493,3.04164775,139.56,139.54,0.04984761]
[1764178638398,2.99,139.54,139.43,9.5368]
[1764178638591,2.99,139.54,139.4,103.5404]
[1764178638592,2.99,139.52,139.4,103.5404]
[1764178638787,2.99,139.52,139.42,100.4483]
[1764178638983,2.99,139.5,139.39,100.4691]
[1764178639185,2.99,139.48,139.4,100.4635]
[1764178639383,0.04721068,139.46,139.43,0.05329116]
[1764178639885,0.04721068,139.46,139.35,107.33165705]
[1764178639886,3.03721068,139.46,139.35,3.08]
[1764178640185,2.99,139.44,139.31,175.40573485]
[1764178640386,2.99,139.42,139.31,178.48573485]
[1764178640590,2.99,139.42,139.31,184.94823485]
[1764178641090,2.99,139.42,139.31,279.01313485]
[1764178641289,3.03862515,139.38,139.35,0.05117886]
[1764178641994,3.03862515,139.38,139.27,3.08]
[1764178642198,2.99,139.37,139.23,3.08]
[1764178642794,2.99,139.37,139.21,25.54]
[1764178642795,2.99,139.35,139.24,3.08]
[1764178643190,3.04133476,139.31,139.28,0.05305743]
[1764178643393,0.05133476,139.31,139.28,0.05305743]
[1764178645100,0.05133476,139.31,139.29,103.6217]
[1764178645305,0.05133476,139.31,139.3,3.08]
[1764178645497,25.54,139.39,139.3,103.6103]
[1764178645701,2.99,139.38,139.3,3.08]
[1764178646207,2.99,139.38,139.3,103.6118]
[1764178646709,0.04749427,139.35,139.33,0.04517747]
[1764178647601,3.03749427,139.35,139.33,0.04517747]
[1764178647804,2.99,139.34,139.26,3.08]